[Event "ESP-chT Honor Division 2022"]
[Site "Linares"]
[Date "2022.09.22"]
[Round "6.2"]
[White "Ayats Llobera, Gerard"]
[Black "Alekseenko, Kirill"]
[Result "1-0"]
[ECO "C79"]
[WhiteElo "2451"]
[BlackElo "2707"]
[Annotator "TA"]
[PlyCount "71"]
[EventDate "2022.09.17"]
[EventType "team-tourn"]
[EventCountry "ESP"]
[SourceTitle "playchess.com"]
[Source "ChessBase"]
[SourceQuality "1"]
[TimeControl "5400+30"]

{[%evp 10,71,37,24,46,17,25,15,32,31,55,58,93,88,85,65,59,62,78,60,63,50,47,54,49,51,45,52,98,70,71,68,58,63,66,69,108,113,125,114,116,109,214,202,307,285,426,425,429,421,705,705,931,924,1058,1069,1000,916,2675,2645,2309,2039,4450,3031]} 1. e4 {[%emt 0:00:01]} e5 {[%emt 0:02:20]} 2. Nf3 {[%emt 0:00:04]} Nc6 {[%emt 0:00:26]} 3. Bb5 {[%emt 0:00:04]} a6 {[%emt 0:00:57]} 4. Ba4 {[%emt 0:00:02]} Nf6 {[%emt 0:00:45]} 5. O-O {[%emt 0:00:07]} d6 {[%emt 0:00:46]} 6. Re1 {[%emt 0:00:43]} Bd7 {[%emt 0:00:52] C79: Ruy Lopez: Steinitz-type lines with 3...a6 4 Ba4 Nf6 5 0-0 d6.} 7. c4 {[%emt 0:02:20]} Bg4 {[%emt 0:02:52] [#]} 8. Qb3 $146 {[%emt 0:10:30]} ({Predecessor:} 8. h3 Bxf3 9. Qxf3 Nd7 10. Bxc6 bxc6 11. Rd1 Be7 12. Nc3 O-O 13. b4 Re8 14. Rb1 Nf8 15. Ne2 Ne6 16. d4 exd4 17. Nxd4 Nxd4 18. Rxd4 Bf6 19. Rd1 Qe7 20. e5 {½-½ (20) Brodsky,M (2510)-Malaniuk,V (2610) St Petersburg 1996}) 8... Rb8 {[%emt 0:09:37] The position is equal.} 9. d4 {[%emt 0:09:47]} Nd7 {[%emt 0:02:41]} 10. d5 {[%emt 0:15:43]} Na7 {[%emt 0:24:12]} 11. h3 {[%emt 0:07:26]} Bh5 {[%emt 0:01:14]} 12. Qe3 {[%emt 0:03:42]} Nc8 {[%emt 0:03:40]} 13. b4 {[%emt 0:01:18]} Be7 {[%emt 0:00:32]} 14. Nc3 {[%emt 0:00:49]} O-O {[%emt 0:00:59]} 15. g4 {[%emt 0:00:55]} Bg6 {[%emt 0:00:20]} 16. Qe2 {[%emt 0:07:03]} h6 {[%emt 0:04:05]} 17. Be3 {[%emt 0:01:21]} Ncb6 {[%emt 0:05:04]} 18. Bb3 {[%emt 0:00:20]} c5 {[%emt 0:03:23]} (18... Bh7 $14) 19. dxc6 {[%emt 0:15:02]} bxc6 {[%emt 0:00:04][%cal Oa6a5]} 20. c5 $1 {[%emt 0:00:18]} dxc5 {[%emt 0:05:21]} 21. bxc5 {[%emt 0:00:17]} Bxc5 {[%emt 0:00:20] [#]} 22. Nxe5 $1 {[%emt 0:01:52]} Nxe5 {[%emt 0:07:10]} (22... Bxe3 23. Nxg6) 23. Bxc5 {[%emt 0:00:08][%cal Be3c5,Bc5d6,Bd6c7][%mdl 32]} Qf6 {[%emt 0:01:12] Threatens to win with ...Nf3+.} 24. Kg2 {[%emt 0:05:13] Prevents Nf3.} Rfe8 {[%emt 0:07:49]} 25. Rad1 {[%emt 0:01:00]} Nbd7 {[%emt 0:04:15]} (25... Bh7 $16) 26. Bd6 {[%emt 0:05:49] A strong pair of Bishops.} Rbd8 {[%emt 0:05:18] [#]} (26... Rxb3 $142 27. axb3 h5) 27. Qe3 $1 $18 {[%emt 0:00:47]} Bh7 {[%emt 0:01:25]} (27... Nb8 $142) 28. f4 {[%emt 0:01:29] White is clearly winning.} Ng6 {[%emt 0:00:04]} 29. Bc7 {[%emt 0:03:12] e5 is the strong threat.} Nh4+ {[%emt 0:00:05]} (29... Nxf4+ $142 30. Bxf4 Ne5) 30. Kg3 {[%emt 0:00:57] Hoping for e5.} g5 {[%emt 0:00:43]} 31. fxg5 {[%emt 0:01:40]} hxg5 {[%emt 0:04:36]} 32. Rf1 {[%emt 0:00:31] Active counter play!} Bf5 {[%emt 0:00:01]} 33. gxf5 {[%emt 0:03:12]} Nf8 {[%emt 0:01:04]} 34. Rxd8 {[%emt 0:00:50]} Rxd8 {[%emt 0:00:05]} 35. Bxd8 {[%emt 0:01:56]} Qe5+ {[%emt 0:01:15]} 36. Kg4 {[%emt 0:00:09] Weighted Error Value: White=0.06 (flawless) /Black=0.37} 1-0

[Event "ESP-chT Honor Division 2022"]
[Site "Linares"]
[Date "2022.09.22"]
[Round "6.3"]
[White "Korobov, Anton"]
[Black "Masague Artero, Guerau"]
[Result "1-0"]
[ECO "E10"]
[WhiteElo "2671"]
[BlackElo "2308"]
[Annotator "TA"]
[PlyCount "53"]
[EventDate "2022.09.17"]
[EventType "team-tourn"]
[EventCountry "ESP"]
[SourceTitle "playchess.com"]
[Source "ChessBase"]
[SourceQuality "1"]
[TimeControl "5400+30"]

{[%evp 22,53,0,-14,-8,-36,-25,-45,14,14,14,10,16,14,21,17,162,150,29988,29989,29989,29990,29990,29986,29991,29987,29987,29988,29988,29989,29989,29990,29990,29991]} 1. d4 {[%emt 0:00:02]} Nf6 {[%emt 0:00:12]} 2. c4 {[%emt 0:00:06]} e6 {[%emt 0:00:13]} 3. Nf3 {[%emt 0:00:07]} d5 {[%emt 0:01:01]} 4. e3 {[%emt 0:00:23]} c5 {[%emt 0:05:23]} 5. Nc3 {[%emt 0:00:26]} Nc6 {[%emt 0:02:17]} 6. a3 {[%emt 0:01:47]} cxd4 {[%emt 0:01:40]} 7. exd4 {[%emt 0:00:09]} Be7 {[%emt 0:06:35]} 8. Bd3 {[%emt 0:14:18]} dxc4 {[%emt 0:00:12]} 9. Bxc4 {[%emt 0:00:04]} O-O {[%emt 0:01:23]} 10. O-O {[%emt 0:03:31]} b6 {[%emt 0:00:51]} 11. Re1 {[%emt 0:03:41]} Bb7 {[%emt 0:01:39]} 12. Bg5 {[%emt 0:07:20]} h6 {[%emt 0:02:33] E57: Nimzo-Indian: Rubinstein: Main Line: 7...Nc6 8 a3 dxc4 9 Bxc4 cxd4.} 13. Be3 {[%emt 0:05:09]} Rc8 {[%emt 0:01:15][%cal Oc6d4]} 14. Ba2 {[%emt 0:04:18] [#]} Ng4 $146 {[%emt 0:06:57]} ({Better is} 14... Bd6 $15) ({Predecessor:} 14... Na5 15. Ne5 Bxa3 16. Qd2 Bb4 17. Bxh6 Bxc3 18. bxc3 gxh6 19. Qxh6 Rxc3 20. Ng6 Nh7 21. Rxe6 Nb3 22. Bxb3 Rxb3 23. Ne7+ Kh8 24. Re5 Qxd4 25. Rae1 Qxe5 {0-1 (25) Cordova,E (2592)-Kopylov,M (2407) Chess.com INT 2020}) 15. d5 $11 {[%emt 0:05:38]} exd5 {[%emt 0:08:52]} 16. Nxd5 {[%emt 0:00:57]} Bd6 {[%emt 0:03:59]} 17. h3 {[%emt 0:13:38]} Nxe3 {[%emt 0:09:41]} 18. Rxe3 {[%emt 0:00:53]} Qd7 {[%emt 0:00:11] [#]} (18... Ne7 $11 19. Rd3 Ng6) 19. Qd3 $1 $18 {[%emt 0:04:05][%cal Od5f6] Intending Nf6+! and mate.} Rcd8 $2 {[%emt 0:05:24] [#] Loses the game.} (19... Qd8 $16) 20. Nf6+ $1 {[%emt 0:01:56][%mdl 512] White mates.} gxf6 {[%emt 0:00:58]} 21. Qg6+ $1 {[%emt 0:00:06]} Kh8 {[%emt 0:00:05]} 22. Qxh6+ {[%emt 0:00:36]} Kg8 {[%emt 0:00:04]} 23. Qg6+ {[%emt 0:00:29]} Kh8 {[%emt 0:00:04]} 24. Qxf6+ {[%emt 0:00:06]} Kg8 {[%emt 0:01:36]} 25. Ng5 {[%emt 0:01:04]} Bh2+ {[%emt 0:00:14]} 26. Kh1 {[%emt 0:02:30]} Ne5 {[%emt 0:07:37]} 27. Rxe5 {[%emt 0:00:31] Weighted Error Value: White=0.05 (flawless) /Black=0.70} 1-0

[Event "ESP-chT Honor Division 2022"]
[Site "Linares"]
[Date "2022.09.22"]
[Round "6.4"]
[White "Jimenez Ruano, Adrian"]
[Black "Alonso Rosell, Alvar"]
[Result "0-1"]
[ECO "B31"]
[WhiteElo "2264"]
[BlackElo "2564"]
[Annotator "TA"]
[PlyCount "82"]
[EventDate "2022.09.17"]
[EventType "team-tourn"]
[EventCountry "ESP"]
[SourceTitle "playchess.com"]
[Source "ChessBase"]
[SourceQuality "1"]
[TimeControl "5400+30"]

{[%evp 13,82,35,40,11,27,8,4,-60,0,-24,-17,-9,0,0,-2,-9,0,-120,-121,-165,-172,-171,-166,-164,-145,-193,-175,-198,-202,-205,-185,-216,-218,-242,-202,-257,-255,-236,-225,-304,-294,-478,-480,-476,-473,-659,-654,-650,-647,-640,-634,-604,-563,-628,-626,-752,-739,-729,-691,-846,-805,-840,-839,-843,-850,-899,-893,-869,-793,-753,-663]} 1. e4 {[%emt 0:00:01]} c5 {[%emt 0:15:54]} 2. Nf3 {[%emt 0:00:07]} Nc6 {[%emt 0:04:09]} 3. Bb5 {[%emt 0:00:48]} g6 {[%emt 0:04:38]} 4. O-O {[%emt 0:01:00]} Bg7 {[%emt 0:00:36]} 5. Bxc6 {[%emt 0:03:37]} dxc6 {[%emt 0:03:25]} 6. d3 {[%emt 0:00:09]} e5 {[%emt 0:07:09]} 7. Be3 {[%emt 0:02:04]} Qe7 {[%emt 0:01:34]} 8. Nc3 {[%emt 0:01:11] B31: Sicilian: 2...Nc6 3 Bb5 g6.} Bg4 $5 {[%emt 0:02:17][%mdl 4] [#] Exploring less charted territory.} 9. a3 $146 {[%emt 0:01:16][%cal Ob2b4]} ({Predecessor:} 9. h3 Bxf3 10. Qxf3 Nf6 11. Qg3 Nh5 12. Qg4 O-O 13. a4 c4 14. dxc4 Qb4 15. Rab1 Qxc4 {½-½ (41) Wall,G (2413)-Shaw,J (2465) West Bromwich 2004}) 9... Nf6 {[%emt 0:01:51]} 10. b4 {[%emt 0:07:53]} (10. h3 $11 Bxf3 11. Qxf3) 10... Nd7 {[%emt 0:11:46]} ({Better is} 10... cxb4 $15 11. axb4 Qxb4) 11. h3 {[%emt 0:06:41]} Bxf3 {[%emt 0:00:55]} 12. Qxf3 {[%emt 0:00:01]} cxb4 {[%emt 0:05:14]} 13. axb4 {[%emt 0:00:02]} Qxb4 {[%emt 0:00:18]} 14. Ne2 {[%emt 0:00:40]} Qd6 {[%emt 0:03:40]} 15. c3 {[%emt 0:21:33]} (15. Bxa7 $11 {remains equal.} b6 16. Ra6) 15... O-O $17 {[%emt 0:08:17] White is now going downhill.} ({And not} 15... Qxd3 16. Rfb1 $15) 16. d4 {[%emt 0:00:06]} a5 {[%emt 0:01:25]} 17. Rfd1 {[%emt 0:00:38]} b5 {[%emt 0:02:28][%cal Bb7b5,Bb5b4][%mdl 32]} 18. Qg3 {[%emt 0:01:48]} Qe7 {[%emt 0:01:04]} 19. d5 {[%emt 0:04:46]} (19. Bg5 $17 Qe8 20. Qh4) 19... c5 $19 {[%emt 0:02:23]} 20. Rdb1 {[%emt 0:01:15]} b4 {[%emt 0:03:54]} 21. Bd2 {[%emt 0:00:08]} Rfc8 {[%emt 0:02:32]} 22. Ra2 {[%emt 0:01:50]} Nb6 {[%emt 0:01:09]} 23. Be1 {[%emt 0:00:55]} Qd6 {[%emt 0:02:37]} 24. Qg5 {[%emt 0:01:29]} Nc4 {[%emt 0:03:56]} 25. Qc1 {[%emt 0:00:06]} Qb6 {[%emt 0:00:12] [#] Hoping for ...b3.} 26. cxb4 {[%emt 0:00:42]} cxb4 {[%emt 0:00:09]} 27. Bxb4 $2 {[%emt 0:00:15]} (27. Qd1 {was worth a try.}) 27... Rab8 {[%emt 0:06:58] Black is clearly winning.} ({Stronger than} 27... axb4 28. Rxa8 Rxa8 29. Qxc4 $15) 28. Rc2 {[%emt 0:01:07] [#]} Nd6 {[%emt 0:00:20]} 29. Bxd6 {[%emt 0:18:46]} Rxc2 {[%emt 0:00:11]} 30. Qxc2 {[%emt 0:00:10]} Qxb1+ {[%emt 0:00:06]} 31. Qxb1 {[%emt 0:00:03]} Rxb1+ {[%emt 0:00:05][%mdl 4096] Endgame KRB-KBN} 32. Kh2 {[%emt 0:00:03]} Rb7 {[%emt 0:02:50]} 33. Nc3 {[%emt 0:00:12]} f6 {[%emt 0:00:28]} 34. f4 {[%emt 0:00:13]} exf4 {[%emt 0:00:27]} 35. Bxf4 {[%emt 0:00:32]} Kf7 {[%emt 0:00:45]} 36. Kg1 {[%emt 0:00:52]} Rb3 {[%emt 0:01:03]} 37. Na4 {[%emt 0:00:25]} Bf8 {[%emt 0:00:34]} 38. d6 {[%emt 0:00:04]} Rd3 {[%emt 0:01:15]} 39. Nc5 {[%emt 0:00:01]} Rd1+ {[%emt 0:00:20]} 40. Kf2 {[%emt 0:00:02]} Bxd6 {[%emt 0:00:25]} 41. Ke2 {[%emt 0:00:00]} Rd4 {[%emt 0:00:08] Weighted Error Value: White=0.46/Black=0.07 (flawless)} ({Worse is} 41... Bxf4 42. Kxd1 Bd6 43. Nb3 $17) 0-1

[Event "ESP-chT Honor Division 2022"]
[Site "Linares"]
[Date "2022.09.22"]
[Round "6.5"]
[White "Henderson de La Fuente, Lance"]
[Black "Rodriguez Redondo, Adhara"]
[Result "1/2-1/2"]
[ECO "E06"]
[WhiteElo "2504"]
[BlackElo "2112"]
[Annotator "TA"]
[PlyCount "73"]
[EventDate "2022.09.17"]
[EventType "team-tourn"]
[EventCountry "ESP"]
[SourceTitle "playchess.com"]
[Source "ChessBase"]
[SourceQuality "1"]
[TimeControl "5400+30"]

{[%evp 21,73,14,26,0,23,10,14,0,0,0,0,0,0,0,0,0,10,8,13,8,14,8,20,10,9,0,5,0,0,0,11,4,9,2,12,-22,0,0,0,0,0,-34,0,-35,4,0,0,-12,0,-23,0,-127,-116,-245]} 1. d4 {[%emt 0:00:32]} d5 {[%emt 0:00:05]} 2. c4 {[%emt 0:00:36]} e6 {[%emt 0:00:05]} 3. Nf3 {[%emt 0:00:23]} Nf6 {[%emt 0:00:10]} 4. g3 {[%emt 0:00:45]} Be7 {[%emt 0:00:16]} 5. Bg2 {[%emt 0:00:26]} O-O {[%emt 0:00:12]} 6. O-O {[%emt 0:00:37]} dxc4 {[%emt 0:00:13]} 7. Qc2 {[%emt 0:00:52]} a6 {[%emt 0:00:20]} 8. a4 {[%emt 0:00:25]} Bd7 {[%emt 0:01:11][%cal Bc8d7,Bd7c6,Bc6d5,Bd5e4][%mdl 32]} 9. Qxc4 {[%emt 0:01:44]} Bc6 {[%emt 0:00:28]} 10. Bg5 {[%emt 0:01:37]} Bd5 {[%emt 0:03:10]} 11. Qd3 {[%emt 0:11:10]} Be4 {[%emt 0:11:01]} 12. Qb3 {[%emt 0:05:35] E05: Open Catalan: 5 Nf3 Be7.} (12. Qe3 $5 {[%cal Rg5f6]} Nbd7 13. Nc3 $11) 12... Bd5 {[%emt 0:11:27]} 13. Qd1 {[%emt 0:04:33] [#]} a5 $146 {[%emt 0:07:36]} ({Predecessor:} 13... Nbd7 14. Nc3 Bxf3 15. Bxf3 c6 16. Qb3 Qb6 17. Qxb6 Nxb6 18. Bxf6 Bxf6 19. e3 Nc4 {1-0 (100) Tokman,A (2316)-Shuvalova,P (2454) Chess.com INT 2020}) 14. Nc3 {[%emt 0:01:07] The position is equal.} c6 {[%emt 0:11:01]} 15. Re1 {[%emt 0:13:42]} Bxf3 {[%emt 0:07:28]} 16. Bxf3 {[%emt 0:00:09]} h6 {[%emt 0:07:01]} 17. Bxf6 {[%emt 0:06:56]} Bxf6 {[%emt 0:00:08]} 18. e3 {[%emt 0:00:08]} Qb6 {[%emt 0:03:53]} 19. Qe2 {[%emt 0:02:42]} Na6 {[%emt 0:01:17][%cal Bb8a6,Ba6b4,Bb4d5,Bd5b6][%mdl 32]} 20. Ne4 {[%emt 0:01:12]} Be7 {[%emt 0:01:02]} 21. h4 {[%emt 0:01:46]} Nb4 {[%emt 0:06:16]} 22. Rec1 {[%emt 0:07:13]} Rfd8 {[%emt 0:03:21]} 23. Rc4 {[%emt 0:04:25]} Nd5 {[%emt 0:02:58]} 24. Rac1 {[%emt 0:06:00]} Qc7 {[%emt 0:05:05]} 25. b3 {[%emt 0:05:18]} Ra6 {[%emt 0:02:11]} 26. Kg2 {[%emt 0:05:09]} Rb6 {[%emt 0:01:22]} 27. Qb2 {[%emt 0:00:37]} Rb4 {[%emt 0:03:01]} 28. Bd1 {[%emt 0:01:07]} Nb6 {[%emt 0:01:49]} 29. Rxb4 {[%emt 0:00:07]} Bxb4 {[%emt 0:00:21]} 30. Bf3 {[%emt 0:05:31]} Qe7 {[%emt 0:01:02] Hoping for ...Ba3.} 31. Rc2 {[%emt 0:01:28]} Nd5 {[%emt 0:02:06]} 32. Qa1 {[%emt 0:00:47]} Ra8 {[%emt 0:01:46]} (32... f5 $5 {[%cal Rf5e4]} 33. Nd2 e5 $15) 33. Be2 {[%emt 0:00:29]} Rd8 {[%emt 0:00:49][%cal Oe6e5]} 34. Bc4 {[%emt 0:01:58]} Nf6 {[%emt 0:00:58]} 35. Bd3 {[%emt 0:01:20]} Nd5 {[%emt 0:01:11][%cal Oe6e5]} 36. Rc1 {[%emt 0:01:29] [#]} (36. Bc4 $11) 36... e5 $1 $17 {[%emt 0:01:15]} 37. Rd1 {[%emt 0:02:39] Weighted Error Value: White=0.18 (very precise) /Black=0.09 (flawless)} (37. Qb1 $17 {is a better defense.}) 1/2-1/2

[Event "ESP-chT Honor Division 2022"]
[Site "Linares"]
[Date "2022.09.22"]
[Round "6.6"]
[White "Cano Sevilla, Ivan"]
[Black "Cramling, Pia"]
[Result "1/2-1/2"]
[ECO "B43"]
[WhiteElo "2076"]
[BlackElo "2468"]
[Annotator "TA"]
[PlyCount "134"]
[EventDate "2022.09.17"]
[EventType "team-tourn"]
[EventCountry "ESP"]
[SourceTitle "playchess.com"]
[Source "ChessBase"]
[SourceQuality "1"]
[TimeControl "5400+30"]

{[%evp 13,134,0,0,0,0,-12,6,-29,0,0,0,-16,-8,-59,-62,-90,-66,-56,-19,-66,-65,-67,-33,-40,-45,-40,-50,-35,-28,-24,-23,-37,-30,-37,-28,-21,-20,-24,-27,-69,-66,-89,-89,-89,-89,-89,-89,-89,-89,-97,-97,-161,-89,-90,-89,-123,-128,-137,-122,-123,-122,-172,-89,-139,-139,-139,-139,-162,-139,-139,-139,-147,-108,-108,-108,-108,-108,-108,-108,-108,-108,-108,-108,-108,-108,-108,-108,-108,-108,-108,-108,-108,0,-108,0,-108,-108,-108,0,-108,0,-108,-55,-55,-55,-55,-55,-55,-55,-55,-55,-55,-55,-55,-55,-55,-55,-55,-55,-55,-55,-55,-54]} 1. e4 {[%emt 0:00:05]} c5 {[%emt 0:00:07]} 2. Nf3 {[%emt 0:00:03]} e6 {[%emt 0:00:11]} 3. d4 {[%emt 0:00:03]} cxd4 {[%emt 0:00:05]} 4. Nxd4 {[%emt 0:00:06]} a6 {[%emt 0:00:07]} 5. Nc3 {[%emt 0:00:14]} b5 {[%emt 0:00:33]} 6. Be3 {[%emt 0:01:45]} Bb7 {[%emt 0:01:55]} 7. f3 {[%emt 0:02:32]} Qc7 {[%emt 0:10:25]} 8. Qd2 {[%emt 0:13:08] B43: Sicilian: Kan Variation: 5 Nc3.} Nf6 {[%emt 0:01:07]} 9. a3 {[%emt 0:02:28]} Be7 {[%emt 0:06:30]} 10. Be2 {[%emt 0:01:22] The position is equal.} (10. Bf4 $5 {[%cal Rf4c7]} d6 11. Nb3 $11) 10... Nc6 {[%emt 0:05:34]} 11. Nxc6 {[%emt 0:00:10]} dxc6 {[%emt 0:02:37] [#]} 12. Bf4 $146 {[%emt 0:01:01]} ({Predecessor:} 12. O-O O-O 13. f4 Rfd8 14. Qe1 c5 15. e5 Nd5 16. Nxd5 Bxd5 17. Bf3 c4 18. c3 Bxf3 19. Rxf3 {0-1 (43) Boghi,V-Borensztajn,D (1872) Rio de Janeiro 2014}) 12... e5 {[%emt 0:00:30]} 13. Bg3 {[%emt 0:01:28]} (13. Be3 $11) 13... Nh5 $15 {[%emt 0:07:35]} 14. O-O-O {[%emt 0:03:05][%cal Og3e5]} Rd8 {[%emt 0:00:43]} 15. Qe3 {[%emt 0:00:11]} O-O {[%emt 0:00:18]} 16. Rxd8 (16. Bf2 $11) 16... Rxd8 {[%emt 0:01:34]} 17. Rd1 {[%emt 0:01:46]} h6 {[%emt 0:07:11] [#] And now ...Bg5 would win.} 18. Rxd8+ {[%emt 0:01:55]} Bxd8 {[%emt 0:00:06][%cal Be7d8,Bd8c7,Bc7b6,Bb6f2][%mdl 32]} 19. Qa7 {[%emt 0:00:19][%cal Og3e5]} Nxg3 {[%emt 0:08:02]} 20. hxg3 {[%emt 0:00:02]} Bc8 {[%emt 0:00:47]} (20... Kh7 {keeps more tension.} 21. Nd1 Kg6 22. b4 c5) 21. Qxc7 {[%emt 0:00:10]} Bxc7 $11 {[%emt 0:00:02][%mdl 4096] Endgame KBB-KBN} 22. Nd1 {[%emt 0:01:24]} Bb6 {[%emt 0:01:42]} 23. Kd2 {[%emt 0:02:03]} g6 {[%emt 0:01:15]} 24. c4 {[%emt 0:00:32]} Kf8 {[%emt 0:01:16]} 25. cxb5 {[%emt 0:01:13]} axb5 {[%emt 0:00:32]} 26. Nc3 {[%emt 0:04:44]} h5 {[%emt 0:01:55]} 27. Na2 {[%emt 0:04:12]} Bf2 {[%emt 0:02:05]} 28. Nb4 {[%emt 0:00:07]} Bd7 {[%emt 0:00:38]} ({But not} 28... Bxg3 29. Nxc6 f5 30. exf5 $16 (30. Bxb5 fxe4 31. fxe4 g5 $14)) 29. g4 {[%emt 0:03:53]} hxg4 {[%emt 0:00:09]} 30. fxg4 {[%emt 0:00:04]} Ke7 {[%emt 0:01:24]} 31. Nd3 {[%emt 0:07:29][%csl LRe5,LRf2]} Bd4 {[%emt 0:00:25]} 32. b4 {[%emt 0:00:32] Inhibits c5.} (32. g5 $17 {might work better.}) 32... Kd6 {[%emt 0:00:36]} (32... Kf6 $19 {...Kg5 is the strong threat.} 33. Ne1 c5) 33. Kc2 {[%emt 0:02:14]} Be3 {[%emt 0:04:49]} 34. a4 {[%emt 0:03:40]} bxa4 {[%emt 0:01:44]} 35. Nb2 {[%emt 0:00:32] aiming for Nc4+.} Ke7 {[%emt 0:00:51]} 36. Nxa4 {[%emt 0:00:27]} Kf6 {[%emt 0:01:01]} 37. Nb2 {[%emt 0:01:51]} (37. Kd3 $17 {keeps fighting.} Bf2 38. Bd1) 37... Bb6 {[%emt 0:06:43]} ({Black should try} 37... Kg5 $19 {Strongly threatening ...Bd4.} 38. Nc4 Bd4) 38. Nc4 {[%emt 0:01:45] [#]} (38. Nd3 $142) 38... Bc7 $1 $17 {[%emt 0:00:06]} 39. Ne3 {[%emt 0:00:07]} Kg5 {[%emt 0:00:21]} 40. Kd3 {[%emt 0:01:40]} f6 {[%emt 0:02:26] Threatens to win with ...Bd6.} 41. g3 {[%emt 0:05:02]} Bb6 {[%emt 0:00:29]} 42. Kd2 {[%emt 0:00:01]} Bxe3+ {[%emt 0:03:23]} 43. Kxe3 {[%emt 0:00:04]} Bxg4 {[%emt 0:00:07] KB-KB} 44. Ba6 {[%emt 0:00:02]} Be6 {[%emt 0:03:06]} 45. Bb7 {[%emt 0:00:15]} Bd7 {[%emt 0:04:35]} 46. Kf3 {[%emt 0:00:37]} f5 {[%emt 0:00:52]} 47. Ba8 {[%emt 0:00:30]} Kf6 {[%emt 0:01:36]} 48. Bb7 {[%emt 0:00:51]} Ke7 {[%emt 0:00:30]} 49. Ke3 {[%emt 0:03:43]} Kd6 {[%emt 0:02:39]} 50. Ba6 {[%emt 0:00:14]} Be6 {[%emt 0:01:04]} 51. Be2 {[%emt 0:01:29]} Kc7 {[%emt 0:01:27]} 52. Ba6 {[%emt 0:00:49]} Kd6 {[%emt 0:02:47]} 53. Be2 $1 {[%emt 0:00:10]} Bd7 {[%emt 0:01:09]} 54. Ba6 $1 {[%emt 0:00:58]} Ke6 {[%emt 0:00:13]} 55. Bb7 {[%emt 0:00:21]} Kf6 {[%emt 0:00:46]} 56. Kf3 $1 {[%emt 0:00:28]} Kg5 {[%emt 0:00:39]} 57. Ba8 {[%emt 0:00:34]} Be8 {[%emt 0:04:04]} ({Black should play} 57... Kh6 $17 58. Bb7 Kg5) 58. Bb7 $15 {[%emt 0:01:00] Black is slightly better.} Kf6 {[%emt 0:00:05]} 59. Ke3 {[%emt 0:01:08]} fxe4 {[%emt 0:01:38]} 60. Kxe4 {[%emt 0:00:17]} Bd7 {[%emt 0:00:12]} 61. Ba8 {[%emt 0:02:21]} Ke6 {[%emt 0:00:33]} 62. Bb7 {[%emt 0:00:32]} Kd6 {[%emt 0:00:05]} 63. Ke3 {[%emt 0:01:50]} Bf5 {[%emt 0:02:01]} 64. Ba6 {[%emt 0:00:32]} Kc7 {[%emt 0:00:45]} 65. Be2 {[%emt 0:00:28]} g5 {[%emt 0:01:09]} 66. Bc4 {[%emt 0:00:54]} Kd6 {[%emt 0:00:28]} 67. Ba6 {[%emt 0:00:13]} Kd5 {And White is the lucky defender.  Weighted Error Value: White=0.09 (flawless) /Black=0.16 (very precise)} 1/2-1/2